fUSD/lending_fUSD_20260517
["ID","MTS","AMOUNT","RATE_DAILY","PERIOD"]
[422439995,1778949043000,-250.0,0.00019178,2]
[422439979,1778949043000,-2000.0,0.00018921,2]
[422439960,1778949043000,-272.760927,0.00018919,2]
[422439981,1778949043000,-2000.0,0.00018921,2]
[422440003,1778949043000,-18345.59,0.00019178,2]
[422439947,1778949043000,-2000.0,0.00018919,2]
[422439951,1778949043000,-298.496159,0.00018919,2]
[422439949,1778949043000,-2000.0,0.00018919,2]
[422439953,1778949043000,-298.496159,0.00018919,2]
[422439964,1778949043000,-300.0,0.0001892,2]
[422439954,1778949043000,-298.496159,0.00018919,2]
[422439955,1778949043000,-298.496159,0.00018919,2]
[422439971,1778949043000,-2000.0,0.00018921,2]
[422439970,1778949043000,-2000.0,0.00018921,2]
[422439962,1778949043000,-272.760927,0.00018919,2]
[422439959,1778949043000,-272.760927,0.00018919,2]
[422439967,1778949043000,-2000.0,0.00018921,2]
[422439966,1778949043000,-2000.0,0.00018921,2]
[422439969,1778949043000,-2000.0,0.00018921,2]
[422439957,1778949043000,-272.760927,0.00018919,2]
[422439972,1778949043000,-2000.0,0.00018921,2]
[422439983,1778949043000,-2000.0,0.00018921,2]
[422439984,1778949043000,-2000.0,0.00018921,2]
[422439975,1778949043000,-2000.0,0.00018921,2]
[422439973,1778949043000,-2000.0,0.00018921,2]
[422439985,1778949043000,-2000.0,0.00018921,2]
[422439974,1778949043000,-2000.0,0.00018921,2]
[422439978,1778949043000,-2000.0,0.00018921,2]
[422440001,1778949043000,-184.204154,0.00019178,2]
[422440011,1778949043000,-176.335,0.000194,2]
[422440007,1778949043000,-186.0,0.00019345,2]
[422440031,1778949043000,-1629.27967864,0.000197,2]
[422440032,1778949043000,-482.16,0.000198,2]
[422440034,1778949043000,-1629.27967864,0.000199,2]
[422440041,1778949043000,-500.0,0.00019999,2]
[422440051,1778949043000,-217.0,0.0002,2]
[422440040,1778949043000,-500.0,0.00019999,2]
[422440043,1778949043000,-500.0,0.00019999,2]
[422440042,1778949043000,-500.0,0.00019999,2]
[422440045,1778949043000,-500.0,0.00019999,2]
[422440044,1778949043000,-260.0008576,0.00019999,2]
[422440035,1778949043000,-200.0,0.00019944,2]
[422440046,1778949043000,-356.95185592,0.00019999,2]
[422440048,1778949043000,-500.0,0.00019999,2]
[422440053,1778949043000,-939.0,0.0002,2]
[422440052,1778949043000,-736.0,0.0002,2]
[422440056,1778949043000,-1250.0,0.0002,2]
[422440057,1778949043000,-394.0,0.0002,2]
[422440054,1778949043000,-295.0,0.0002,2]
[422440055,1778949043000,-309.0,0.0002,2]
[422440059,1778949043000,-179.0,0.0002,2]
[422440058,1778949043000,-313.0,0.0002,2]
[422440000,1778949043000,-184.204154,0.00019178,2]
[422440047,1778949043000,-500.0,0.00019999,2]
[422440027,1778949043000,-449.97,0.00019578,2]
[422440050,1778949043000,-289.0,0.0002,2]
[422440037,1778949043000,-295.23802148,0.00019999,2]
[422440006,1778949043000,-789.9,0.00019304,2]
[422440038,1778949043000,-500.0,0.00019999,2]
[422440010,1778949043000,-1757.711,0.000194,2]
[422440012,1778949043000,-500.0,0.00019467,2]
[422440015,1778949043000,-1224.0,0.00019488,2]
[422440017,1778949043000,-600.0,0.00019488,2]
[422440016,1778949043000,-600.0,0.00019488,2]
[422440013,1778949043000,-441.0,0.00019467,2]
[422440019,1778949043000,-600.0,0.00019488,2]
[422440022,1778949043000,-705.0,0.00019488,2]
[422440024,1778949043000,-1629.27967864,0.000195,2]
[422440014,1778949043000,-2000.0,0.00019488,2]
[422440020,1778949043000,-600.0,0.00019488,2]
[422440026,1778949043000,-482.16,0.00019555,2]
[422440025,1778949043000,-942.2,0.000195,2]
[422440023,1778949043000,-208.67333663,0.000195,2]
[422440018,1778949043000,-600.0,0.00019488,2]
[422440021,1778949043000,-600.0,0.00019488,2]
[422440030,1778949043000,-208.67333663,0.000197,2]
[422440039,1778949043000,-230.979569,0.00019999,2]
[422440033,1778949043000,-208.67333663,0.000199,2]
[422440036,1778949043000,-2781.82699784,0.00019944,2]
[422440029,1778949043000,-150.43976418,0.000196,2]
[422440099,1778949044000,-184.1,0.00020986,2]
[422440098,1778949044000,-214.393253,0.00020817,2]
[422440094,1778949044000,-1278.0,0.00020817,2]
[422440095,1778949044000,-214.393253,0.00020817,2]
[422440096,1778949044000,-214.393253,0.00020817,2]
[422440091,1778949044000,-1700.0,0.00020817,2]
[422440092,1778949044000,-1700.0,0.00020817,2]
[422440093,1778949044000,-1700.0,0.00020817,2]
[422440089,1778949044000,-1700.0,0.00020817,2]
[422440100,1778949044000,-184.1,0.00020986,2]
[422440101,1778949044000,-184.1,0.00020986,2]
[422440097,1778949044000,-214.393253,0.00020817,2]
[422440102,1778949044000,-184.1,0.00020986,2]
[422440111,1778949044000,-313.0,0.00021,2]
[422440104,1778949044000,-217.0,0.00021,2]
[422440112,1778949044000,-179.0,0.00021,2]
[422440105,1778949044000,-736.0,0.00021,2]
[422440107,1778949044000,-295.0,0.00021,2]
[422440113,1778949044000,-576.0,0.00021,2]
[422440106,1778949044000,-939.0,0.00021,2]
[422440109,1778949044000,-1250.0,0.00021,2]
[422440108,1778949044000,-309.0,0.00021,2]
[422440110,1778949044000,-394.0,0.00021,2]
[422440125,1778949044000,-700.0,0.00021005,2]
[422440114,1778949044000,-1508.06668125,0.00021,2]
[422440090,1778949044000,-1700.0,0.00020817,2]
[422440103,1778949044000,-289.0,0.00021,2]
[422440084,1778949044000,-300.0,0.00020816,2]
[422440062,1778949044000,-852.0,0.0002,2]
[422440085,1778949044000,-1700.0,0.00020817,2]
[422440115,1778949044000,-525.17782738,0.00021,2]
[422440063,1778949044000,-400.0,0.0002,2]
[422440060,1778949044000,-576.0,0.0002,2]
[422440061,1778949044000,-3174.36,0.0002,2]
[422440065,1778949044000,-208.67333663,0.000201,2]
[422440075,1778949044000,-300.0,0.00020547,2]
[422440074,1778949044000,-482.17,0.00020533,2]
[422440070,1778949044000,-482.16,0.00020289,2]
[422440066,1778949044000,-1629.27967864,0.000201,2]
[422440067,1778949044000,-2500.0,0.00020119,2]
[422440071,1778949044000,-1288.7,0.00020381,2]
[422440072,1778949044000,-200.0,0.00020492,2]
[422440086,1778949044000,-1700.0,0.00020817,2]
[422440069,1778949044000,-1350.0,0.00020119,7]
[422440068,1778949044000,-950.0,0.00020119,2]
[422440064,1778949044000,-482.16,0.00020044,2]
[422440076,1778949044000,-3842.85,0.00020548,2]
[422440087,1778949044000,-1700.0,0.00020817,2]
[422440078,1778949044000,-3842.85,0.00020548,2]
[422440088,1778949044000,-1700.0,0.00020817,2]
[422440080,1778949044000,-19032.04,0.00020548,2]
[422440077,1778949044000,-3842.85,0.00020548,2]
[422440079,1778949044000,-3842.83,0.00020548,2]
[422440082,1778949044000,-2000.0,0.00020795,2]
[422440081,1778949044000,-2000.0,0.00020795,2]
[422440083,1778949044000,-2000.0,0.00020795,2]
[422440073,1778949044000,-2884.75459676,0.00020492,2]
[422440116,1778949044000,-2000.0,0.00021002,2]
[422440177,1778949044000,-1400.0,0.00021552,2]
[422440123,1778949044000,-1116.0,0.00021005,2]
[422440155,1778949044000,-2000.0,0.00021282,2]
[422440160,1778949044000,-2000.0,0.00021282,2]
[422440150,1778949044000,-957.294342,0.00021282,2]
[422440153,1778949044000,-957.294342,0.00021282,2]
[422440151,1778949044000,-957.294342,0.00021282,2]
[422440158,1778949044000,-2000.0,0.00021282,2]
[422440152,1778949044000,-957.294342,0.00021282,2]
[422440154,1778949044000,-2000.0,0.00021282,2]
[422440156,1778949044000,-2000.0,0.00021282,2]
[422440157,1778949044000,-2000.0,0.00021282,2]
[422440159,1778949044000,-2000.0,0.00021282,2]
[422440162,1778949044000,-2000.0,0.00021282,2]
[422440141,1778949044000,-151.0,0.00021282,2]
[422440161,1778949044000,-2000.0,0.00021282,2]
[422440163,1778949044000,-2000.0,0.00021282,2]
[422440169,1778949044000,-474.86394109,0.00021526,2]
[422440164,1778949044000,-2000.0,0.00021282,2]
[422440166,1778949044000,-2000.0,0.00021282,2]
[422440171,1778949044000,-1400.0,0.00021552,2]
[422440165,1778949044000,-2000.0,0.00021282,2]
[422440170,1778949044000,-1400.0,0.00021552,2]
[422440168,1778949044000,-375.132308,0.00021406,2]
[422440173,1778949044000,-1400.0,0.00021552,2]
[422440172,1778949044000,-1400.0,0.00021552,2]
[422440176,1778949044000,-1400.0,0.00021552,2]
[422440174,1778949044000,-1400.0,0.00021552,2]
[422440167,1778949044000,-6463.45,0.0002137,2]
[422440143,1778949044000,-206.461634,0.00021282,2]
[422440175,1778949044000,-1400.0,0.00021552,2]
[422440142,1778949044000,-229.908155,0.00021282,2]
[422440139,1778949044000,-300.0,0.00021281,2]
[422440122,1778949044000,-2000.0,0.00021005,2]
[422440118,1778949044000,-2000.0,0.00021002,2]
[422440124,1778949044000,-700.0,0.00021005,2]
[422440117,1778949044000,-2000.0,0.00021002,2]
[422440119,1778949044000,-2000.0,0.00021002,2]
[422440121,1778949044000,-2000.0,0.00021002,2]
[422440128,1778949044000,-700.0,0.00021005,2]
[422440127,1778949044000,-700.0,0.00021005,2]
[422440126,1778949044000,-700.0,0.00021005,2]
[422440129,1778949044000,-700.0,0.00021005,2]
[422440130,1778949044000,-700.0,0.00021005,2]
[422440131,1778949044000,-562.0,0.00021005,2]
[422440120,1778949044000,-2000.0,0.00021002,2]
[422440135,1778949044000,-1190.40117411,0.00021178,2]
[422440132,1778949044000,-500.0,0.00021038,2]
[422440148,1778949044000,-151.0,0.00021282,2]
[422440140,1778949044000,-300.0,0.00021281,2]
[422440149,1778949044000,-151.0,0.00021282,2]
[422440146,1778949044000,-206.461634,0.00021282,2]
[422440145,1778949044000,-206.461634,0.00021282,2]
[422440147,1778949044000,-151.0,0.00021282,2]
[422440137,1778949044000,-1462.64,0.00021273,2]
[422440138,1778949044000,-2476.23,0.00021273,2]
[422440136,1778949044000,-528.36,0.00021205,2]
[422440134,1778949044000,-2991.49051684,0.0002104,2]
[422440133,1778949044000,-200.0,0.0002104,2]
[422440144,1778949044000,-206.461634,0.00021282,2]
[422440216,1778949045000,-500.0,0.00021552,2]
[422440218,1778949045000,-500.0,0.00021552,2]
[422440217,1778949045000,-500.0,0.00021552,2]
[422440209,1778949045000,-500.0,0.00021552,2]
[422440212,1778949045000,-500.0,0.00021552,2]
[422440215,1778949045000,-500.0,0.00021552,2]
[422440211,1778949045000,-500.0,0.00021552,2]
[422440210,1778949045000,-500.0,0.00021552,2]
[422440213,1778949045000,-500.0,0.00021552,2]
[422440214,1778949045000,-500.0,0.00021552,2]
[422440219,1778949045000,-500.0,0.00021552,2]
[422440225,1778949045000,-500.0,0.00021552,2]
[422440227,1778949045000,-500.0,0.00021552,2]
[422440226,1778949045000,-500.0,0.00021552,2]
[422440220,1778949045000,-500.0,0.00021552,2]
[422440222,1778949045000,-500.0,0.00021552,2]
[422440208,1778949045000,-500.0,0.00021552,2]
[422440223,1778949045000,-500.0,0.00021552,2]
[422440224,1778949045000,-500.0,0.00021552,2]
[422440239,1778949045000,-500.0,0.00021552,2]
[422440229,1778949045000,-500.0,0.00021552,2]
[422440228,1778949045000,-500.0,0.00021552,2]
[422440230,1778949045000,-500.0,0.00021552,2]
[422440231,1778949045000,-500.0,0.00021552,2]
[422440232,1778949045000,-500.0,0.00021552,2]
[422440221,1778949045000,-500.0,0.00021552,2]
[422440207,1778949045000,-500.0,0.00021552,2]
[422440200,1778949045000,-500.0,0.00021552,2]
[422440206,1778949045000,-500.0,0.00021552,2]
[422440236,1778949045000,-500.0,0.00021552,2]
[422440178,1778949045000,-1400.0,0.00021552,2]
[422440180,1778949045000,-151.0,0.00021552,2]
[422440181,1778949045000,-500.0,0.00021552,2]
[422440179,1778949045000,-919.0,0.00021552,2]
[422440182,1778949045000,-500.0,0.00021552,2]
[422440184,1778949045000,-500.0,0.00021552,2]
[422440183,1778949045000,-500.0,0.00021552,2]
[422440188,1778949045000,-500.0,0.00021552,2]
[422440193,1778949045000,-500.0,0.00021552,2]
[422440186,1778949045000,-500.0,0.00021552,2]
[422440185,1778949045000,-500.0,0.00021552,2]
[422440205,1778949045000,-500.0,0.00021552,2]
[422440192,1778949045000,-500.0,0.00021552,2]
[422440190,1778949045000,-500.0,0.00021552,2]
[422440187,1778949045000,-500.0,0.00021552,2]
[422440194,1778949045000,-500.0,0.00021552,2]
[422440196,1778949045000,-500.0,0.00021552,2]
[422440197,1778949045000,-500.0,0.00021552,2]
[422440198,1778949045000,-500.0,0.00021552,2]
[422440195,1778949045000,-500.0,0.00021552,2]
[422440201,1778949045000,-500.0,0.00021552,2]
[422440204,1778949045000,-500.0,0.00021552,2]
[422440203,1778949045000,-500.0,0.00021552,2]
[422440199,1778949045000,-500.0,0.00021552,2]
[422440202,1778949045000,-500.0,0.00021552,2]
[422440191,1778949045000,-500.0,0.00021552,2]
[422440189,1778949045000,-500.0,0.00021552,2]
[422440238,1778949045000,-500.0,0.00021552,2]
[422440234,1778949045000,-500.0,0.00021552,2]
[422440267,1778949045000,-500.0,0.00021552,2]
[422440269,1778949045000,-3174.36,0.00021848,2]
[422440271,1778949045000,-151.0,0.00021918,2]
[422440265,1778949045000,-500.0,0.00021552,2]
[422440270,1778949045000,-289.0529305,0.00021918,3]
[422440268,1778949045000,-170.940753,0.00021552,2]
[422440272,1778949045000,-151.0,0.00021918,2]
[422440274,1778949045000,-5000.0,0.00021918,2]
[422440277,1778949045000,-942.2,0.00022,7]
[422440278,1778949045000,-289.0,0.00022,2]
[422440287,1778949045000,-179.0,0.00022,2]
[422440279,1778949045000,-217.0,0.00022,2]
[422440266,1778949045000,-500.0,0.00021552,2]
[422440280,1778949045000,-736.0,0.00022,2]
[422440283,1778949045000,-309.0,0.00022,2]
[422440282,1778949045000,-295.0,0.00022,2]
[422440281,1778949045000,-939.0,0.00022,2]
[422440286,1778949045000,-313.0,0.00022,2]
[422440284,1778949045000,-1250.0,0.00022,2]
[422440289,1778949045000,-450.0,0.00022,2]
[422440291,1778949045000,-202.376384,0.00022346,14]
[422440292,1778949045000,-1288.7,0.00022353,2]
[422440288,1778949045000,-576.0,0.00022,2]
[422440293,1778949045000,-172.58340744,0.00022407,2]
[422440290,1778949045000,-663.41563793,0.00022139,2]
[422440235,1778949045000,-500.0,0.00021552,2]
[422440285,1778949045000,-394.0,0.00022,2]
[422440275,1778949045000,-3074.97,0.00021918,2]
[422440276,1778949045000,-1758.45406209,0.00021918,2]
[422440264,1778949045000,-500.0,0.00021552,2]
[422440237,1778949045000,-500.0,0.00021552,2]
[422440273,1778949045000,-151.0,0.00021918,2]
[422440233,1778949045000,-500.0,0.00021552,2]
[422440241,1778949045000,-500.0,0.00021552,2]
[422440242,1778949045000,-500.0,0.00021552,2]
[422440240,1778949045000,-500.0,0.00021552,2]
[422440243,1778949045000,-500.0,0.00021552,2]
[422440247,1778949045000,-500.0,0.00021552,2]
[422440248,1778949045000,-500.0,0.00021552,2]
[422440246,1778949045000,-500.0,0.00021552,2]
[422440251,1778949045000,-500.0,0.00021552,2]
[422440245,1778949045000,-500.0,0.00021552,2]
[422440250,1778949045000,-500.0,0.00021552,2]
[422440244,1778949045000,-500.0,0.00021552,2]
[422440253,1778949045000,-500.0,0.00021552,2]
[422440260,1778949045000,-500.0,0.00021552,2]
[422440249,1778949045000,-500.0,0.00021552,2]
[422440262,1778949045000,-500.0,0.00021552,2]
[422440259,1778949045000,-500.0,0.00021552,2]
[422440258,1778949045000,-500.0,0.00021552,2]
[422440255,1778949045000,-500.0,0.00021552,2]
[422440261,1778949045000,-500.0,0.00021552,2]
[422440254,1778949045000,-500.0,0.00021552,2]
[422440257,1778949045000,-500.0,0.00021552,2]
[422440263,1778949045000,-500.0,0.00021552,2]
[422440252,1778949045000,-500.0,0.00021552,2]
[422440256,1778949045000,-500.0,0.00021552,2]
[422440339,1778949046000,-179.0,0.00024,2]
[422440342,1778949046000,-284.625,0.00024241,2]
[422440341,1778949046000,-500.0,0.00024,2]
[422440340,1778949046000,-576.0,0.00024,2]
[422440337,1778949046000,-394.0,0.00024,2]
[422440334,1778949046000,-295.0,0.00024,2]
[422440335,1778949046000,-309.0,0.00024,2]
[422440332,1778949046000,-736.0,0.00024,2]
[422440333,1778949046000,-939.0,0.00024,2]
[422440330,1778949046000,-289.0,0.00024,2]
[422440338,1778949046000,-313.0,0.00024,2]
[422440336,1778949046000,-1250.0,0.00024,2]
[422440343,1778949046000,-1281.822,0.00024241,2]
[422440366,1778949046000,-8466.0,0.00024959,2]
[422440344,1778949046000,-1242.749,0.00024241,2]
[422440345,1778949046000,-3543.0,0.00024241,2]
[422440346,1778949046000,-3689.286,0.00024241,2]
[422440348,1778949046000,-1288.7,0.00024324,2]
[422440354,1778949046000,-500.0,0.00024658,2]
[422440349,1778949046000,-2312.0,0.0002436,3]
[422440351,1778949046000,-451.0,0.00024583,2]
[422440350,1778949046000,-11578.0,0.000245,2]
[422440352,1778949046000,-956.2,0.00024658,2]
[422440353,1778949046000,-1000.0,0.00024658,2]
[422440355,1778949046000,-1758.45406209,0.00024658,2]
[422440328,1778949046000,-524.40294489,0.00023777,2]
[422440347,1778949046000,-180.48177615,0.00024252,2]
[422440329,1778949046000,-615.09833529,0.00023973,2]
[422440299,1778949046000,-179.48,0.00022691,2]
[422440326,1778949046000,-190.856502,0.00023547,14]
[422440356,1778949046000,-2178.61,0.00024658,2]
[422440300,1778949046000,-3248.18,0.00022691,2]
[422440294,1778949046000,-151.09078876,0.00022407,2]
[422440298,1778949046000,-615.09833529,0.00022603,2]
[422440295,1778949046000,-151.09078875,0.00022407,2]
[422440296,1778949046000,-1755.33,0.00022466,2]
[422440297,1778949046000,-813.65,0.00022466,2]
[422440302,1778949046000,-363.0,0.00023,30]
[422440313,1778949046000,-309.0,0.00023,2]
[422440315,1778949046000,-1250.0,0.00023,2]
[422440305,1778949046000,-217.0,0.00023,2]
[422440318,1778949046000,-179.0,0.00023,2]
[422440301,1778949046000,-462.3,0.00022691,2]
[422440317,1778949046000,-313.0,0.00023,2]
[422440319,1778949046000,-576.0,0.00023,2]
[422440307,1778949046000,-736.0,0.00023,2]
[422440316,1778949046000,-394.0,0.00023,2]
[422440303,1778949046000,-289.0,0.00023,2]
[422440309,1778949046000,-939.0,0.00023,2]
[422440311,1778949046000,-295.0,0.00023,2]
[422440320,1778949046000,-330.14,0.00023,2]
[422440321,1778949046000,-412.0,0.00023,2]
[422440322,1778949046000,-615.09833529,0.00023288,2]
[422440327,1778949046000,-3174.36,0.00023697,2]
[422440331,1778949046000,-217.0,0.00024,2]
[422440324,1778949046000,-160.0,0.00023547,14]
[422440323,1778949046000,-209.038134,0.00023473,14]
[422440325,1778949046000,-175.428251,0.00023547,14]
[422440360,1778949046000,-193.86641471,0.00024658,2]
[422440370,1778949046000,-153.7,0.00024975,2]
[422440365,1778949046000,-2178.61,0.00024946,7]
[422440391,1778949046000,-151.0,0.00025,2]
[422440394,1778949046000,-179.7,0.00025,2]
[422440395,1778949046000,-179.7,0.00025,2]
[422440390,1778949046000,-151.0,0.00025,2]
[422440400,1778949046000,-1540.0,0.00025,3]
[422440401,1778949046000,-151.0,0.00025,3]
[422440397,1778949046000,-1540.0,0.00025,3]
[422440398,1778949046000,-1540.0,0.00025,3]
[422440402,1778949046000,-1540.0,0.00025,3]
[422440396,1778949046000,-151.0,0.00025,2]
[422440407,1778949046000,-207.91673118,0.00025,3]
[422440414,1778949046000,-330.24741556,0.00025,2]
[422440393,1778949046000,-151.0,0.00025,2]
[422440403,1778949046000,-151.0,0.00025,3]
[422440404,1778949046000,-1540.0,0.00025,3]
[422440405,1778949046000,-151.0,0.00025,3]
[422440406,1778949046000,-1540.0,0.00025,3]
[422440409,1778949046000,-151.0,0.00025,2]
[422440408,1778949046000,-151.0,0.00025,2]
[422440410,1778949046000,-151.0,0.00025,2]
[422440412,1778949046000,-398.39833639,0.00025,2]
[422440415,1778949046000,-151.0,0.00025,2]
[422440418,1778949046000,-181.62060025,0.00025,2]
[422440416,1778949046000,-151.0,0.00025,2]
[422440417,1778949046000,-151.0,0.00025,2]
[422440357,1778949046000,-500.0,0.00024658,2]
[422440411,1778949046000,-1268.24247352,0.00025,2]
[422440399,1778949046000,-1540.0,0.00025,3]
[422440413,1778949046000,-151.0,0.00025,2]
[422440386,1778949046000,-151.0,0.00025,2]
[422440389,1778949046000,-151.0,0.00025,2]
[422440358,1778949046000,-500.0,0.00024658,2]
[422440359,1778949046000,-500.0,0.00024658,2]
[422440362,1778949046000,-213.37737141,0.00024806,2]
[422440363,1778949046000,-565.0,0.00024826,2]
[422440361,1778949046000,-24495.87741852,0.0002475,2]
[422440367,1778949046000,-400.0,0.0002497,2]
[422440368,1778949046000,-400.0,0.0002497,2]
[422440378,1778949046000,-222.13147767,0.00025,2]
[422440369,1778949046000,-186.14,0.00024975,2]
[422440419,1778949046000,-214.393253,0.00025,2]
[422440374,1778949046000,-212.94,0.00025,2]
[422440372,1778949046000,-300.0,0.00024999,10]
[422440375,1778949046000,-151.0,0.00025,2]
[422440364,1778949046000,-500.0,0.00024932,2]
[422440387,1778949046000,-309.89157137,0.00025,2]
[422440371,1778949046000,-1208.61248979,0.0002499,2]
[422440376,1778949046000,-465.51149616,0.00025,2]
[422440377,1778949046000,-304.47514207,0.00025,2]
[422440380,1778949046000,-739.96426354,0.00025,2]
[422440379,1778949046000,-1008.96576237,0.00025,2]
[422440382,1778949046000,-944.0,0.00025,2]
[422440381,1778949046000,-151.0,0.00025,2]
[422440385,1778949046000,-295.77307124,0.00025,2]
[422440373,1778949046000,-1182471.48418838,0.00025,2]
[422440383,1778949046000,-151.0,0.00025,2]
[422440388,1778949046000,-151.0,0.00025,2]
[422440384,1778949046000,-151.0,0.00025,2]
[422440461,1778949047000,-151.0,0.00025,2]
[422440454,1778949047000,-1540.0,0.00025,3]
[422440449,1778949047000,-1540.0,0.00025,3]
[422440464,1778949047000,-363.633174,0.00025,2]
[422440457,1778949047000,-1540.0,0.00025,3]
[422440458,1778949047000,-151.0,0.00025,2]
[422440453,1778949047000,-1540.0,0.00025,3]
[422440456,1778949047000,-1540.0,0.00025,3]
[422440455,1778949047000,-1540.0,0.00025,3]
[422440452,1778949047000,-1540.0,0.00025,3]
[422440463,1778949047000,-153.598442,0.00025,2]
[422440459,1778949047000,-1684.50576064,0.00025,3]
[422440462,1778949047000,-177.904356,0.00025,2]
[422440460,1778949047000,-151.0,0.00025,2]
[422440477,1778949047000,-942.2,0.000256,7]
[422440465,1778949047000,-177.904356,0.00025,2]
[422440468,1778949047000,-363.633174,0.00025,2]
[422440473,1778949047000,-465.51149616,0.000253,2]
[422440474,1778949047000,-615.09833529,0.00025342,2]
[422440466,1778949047000,-363.633174,0.00025,2]
[422440476,1778949047000,-3174.36,0.00025545,7]
[422440471,1778949047000,-1500.8753553,0.00025061,2]
[422440470,1778949047000,-722.0,0.00025049,2]
[422440475,1778949047000,-465.51149616,0.000255,2]
[422440469,1778949047000,-177.904356,0.00025,2]
[422440472,1778949047000,-5530.0,0.000252,3]
[422440479,1778949047000,-419.39319205,0.00025711,2]
[422440467,1778949047000,-177.904356,0.00025,2]
[422440445,1778949047000,-1455.722056,0.00025,2]
[422440426,1778949047000,-206.461634,0.00025,2]
[422440446,1778949047000,-1455.722056,0.00025,2]
[422440478,1778949047000,-528.36,0.00025644,2]
[422440420,1778949047000,-214.393253,0.00025,2]
[422440427,1778949047000,-206.461634,0.00025,2]
[422440423,1778949047000,-577.27724586,0.00025,2]
[422440424,1778949047000,-206.461634,0.00025,2]
[422440422,1778949047000,-214.393253,0.00025,2]
[422440421,1778949047000,-214.393253,0.00025,2]
[422440425,1778949047000,-206.461634,0.00025,2]
[422440430,1778949047000,-298.496159,0.00025,2]
[422440436,1778949047000,-289.516242,0.00025,2]
[422440429,1778949047000,-298.496159,0.00025,2]
[422440431,1778949047000,-298.496159,0.00025,2]
[422440435,1778949047000,-272.760927,0.00025,2]
[422440448,1778949047000,-1455.722056,0.00025,2]
[422440438,1778949047000,-289.516242,0.00025,2]
[422440432,1778949047000,-272.760927,0.00025,2]
[422440433,1778949047000,-272.760927,0.00025,2]
[422440434,1778949047000,-272.760927,0.00025,2]
[422440437,1778949047000,-289.516242,0.00025,2]
[422440439,1778949047000,-184.204154,0.00025,2]
[422440441,1778949047000,-184.204154,0.00025,2]
[422440442,1778949047000,-184.204154,0.00025,2]
[422440447,1778949047000,-1540.0,0.00025,3]
[422440450,1778949047000,-1540.0,0.00025,3]
[422440440,1778949047000,-289.516242,0.00025,2]
[422440444,1778949047000,-1455.722056,0.00025,2]
[422440443,1778949047000,-184.204154,0.00025,2]
[422440451,1778949047000,-1540.0,0.00025,3]
[422440428,1778949047000,-298.496159,0.00025,2]
[422440480,1778949047000,-1310.86624813,0.00025735,2]
[422440490,1778949047000,-957.294342,0.00025866,2]
[422440542,1778949047000,-250.0,0.00027,2]
[422440512,1778949047000,-1528.9710399,0.00026389,2]
[422440513,1778949047000,-787.0,0.00026412,3]
[422440523,1778949047000,-150.35093008,0.00026691,2]
[422440517,1778949047000,-167523.8974559,0.00026626,2]